bitfinex/quotes_ETHUSD_20260227
["timestamp","ask_amount","ask_price","bid_price","bid_amount"]
[1772178098172,0.001,2026.7,2026.3,0.0011]
[1772178099066,0.001,2026.7,2026.4,0.0011]
[1772178099291,0.59651403,2026.6,2026.3,0.0011]
[1772178099666,0.59651403,2026.6,2026.2,0.0011]
[1772178099872,0.59651403,2026.6,2026.0,0.0011]
[1772178100170,0.63528773,2026.4,2026.0,0.0011]
[1772178102971,1.86901069,2026.4,2026.0,0.0011]
[1772178103301,0.63528773,2026.4,2026.0,0.0011]
[1772178105295,2.35328773,2026.6,2026.0,0.0011]
[1772178105474,2.35328773,2026.6,2026.0,0.63319608]
[1772178106891,2.35328773,2026.6,2026.1,1.23389763]
[1772178107296,1.718,2026.6,2026.1,1.86599371]
[1772178108192,2.35328773,2026.6,2026.1,1.86599371]
[1772178109001,1.718,2026.6,2026.2,0.63209608]
[1772178109175,0.001,2026.7,2026.2,0.63209608]
[1772178110401,0.001,2026.7,2026.1,1.23389763]
[1772178110402,0.63628773,2026.7,2026.3,0.0011]
[1772178110605,0.63528773,2026.6,2026.3,0.0011]
[1772178111305,0.001,2026.7,2026.3,0.0011]
[1772178113002,1.23453257,2026.7,2026.3,0.0011]
[1772178113683,0.001,2026.7,2026.3,0.0011]
[1772178115096,1.86984801,2026.7,2026.3,0.0011]
[1772178115397,0.63528773,2026.6,2026.3,0.0011]
[1772178117504,0.51324273,2026.6,2026.3,0.0011]
[1772178119902,0.001,2026.7,2026.3,0.0011]
[1772178120212,0.001,2026.7,2026.3,0.63319608]
[1772178122714,0.001,2026.4,2026.3,1.86697192]
[1772178122903,0.001,2026.7,2026.4,0.63209608]
[1772178123102,0.001,2026.9,2026.4,0.63209608]
[1772178123419,0.001,2026.9,2026.5,0.63209608]
[1772178124695,0.001,2026.9,2026.7,0.63209608]
[1772178126928,0.001,2026.9,2026.7,1.865617]
[1772178128224,0.001,2026.9,2026.7,1.23352092]
[1772178128411,0.63528773,2026.7,2025.9,1.23399436]
[1772178128616,0.63628773,2026.9,2026.1,0.63209608]
[1772178128816,1.23347148,2026.8,2026.2,1.23383673]
[1772178129123,1.86875921,2026.8,2026.2,0.63209608]
[1772178129422,0.63528773,2026.7,2026.1,1.23388612]
[1772178129624,0.63528773,2026.7,2026.0,0.63319608]
[1772178129809,0.63528773,2026.7,2026.0,0.0011]
[1772178130323,0.63528773,2026.7,2026.0,1.23505277]
[1772178130731,0.63528773,2026.7,2026.0,0.0011]
[1772178131630,0.59189505,2026.5,2026.0,0.0011]
[1772178132427,1.23347148,2026.8,2026.1,0.63335585]
[1772178132619,1.82536653,2026.8,2026.1,0.63335585]
[1772178132928,0.59189505,2026.7,2026.1,0.63335585]
[1772178133299,0.59189505,2026.7,2026.0,0.0011]
[1772178134326,1.23359321,2026.6,2026.0,0.63445585]
[1772178134532,1.82548826,2026.6,2026.2,0.0011]
[1772178134724,0.001,2026.5,2026.2,0.0011]
[1772178140513,0.59289505,2026.5,2026.2,0.0011]
[1772178141532,1.82567089,2026.3,2026.0,0.0011]
[1772178142512,0.59189505,2026.2,2026.0,0.0011]
[1772178144314,1.23378188,2026.3,2026.0,0.0011]
[1772178144542,1.82567693,2026.3,2026.0,0.0011]
[1772178145323,0.59189505,2026.4,2026.0,0.0011]
[1772178146437,0.001,2026.5,2026.1,0.63335585]
[1772178146637,0.001,2026.5,2026.2,0.0011]
[1772178146943,0.001,2026.3,2026.2,0.0011]
[1772178151241,0.001,2026.3,2026.2,0.63445585]
[1772178151443,1.23443462,2026.9,2026.5,0.63335585]
[1772178151737,0.001,2026.9,2026.6,0.63335585]
[1772178154241,0.001,2026.9,2026.6,1.86694402]
[1772178154822,0.001,2026.9,2026.6,0.63335585]
[1772178155337,0.001,2026.9,2026.6,1.86694557]
[1772178156747,0.001,2026.9,2026.7,0.63335585]
[1772178157045,0.001,2026.9,2026.5,4.93460402]
[1772178157046,0.001,2026.9,2026.5,1.86696207]
[1772178157415,0.001,2026.9,2026.6,0.63335585]
[1772178158852,0.001,2026.9,2026.7,0.0011]
[1772178159943,0.001,2026.9,2026.7,1.86798819]
[1772178160148,0.001,2026.9,2026.7,0.63445585]
[1772178161724,0.001,2026.9,2026.7,1.86793145]
[1772178161920,0.65683723,2027.3,2026.8,0.64542586]
[1772178162351,1.89001124,2027.3,2026.8,0.64542586]
[1772178162521,0.65683723,2027.2,2026.7,0.0011]
[1772178163955,0.65683723,2027.1,2026.7,0.0011]
[1772178166566,1.89017232,2027.1,2026.7,0.0011]
[1772178166744,0.65683723,2027.0,2026.7,0.0011]
[1772178167745,0.65683723,2027.3,2026.8,0.64542586]
[1772178168067,0.65683723,2027.2,2026.8,0.64542586]
[1772178169286,0.65683723,2027.2,2026.9,1.23341062]
[1772178169434,0.65683723,2027.3,2026.9,1.87883648]
[1772178170068,0.65683723,2027.3,2026.9,0.64542586]
[1772178171910,0.65683723,2027.2,2026.9,0.64542586]
[1772178172967,0.65683723,2027.2,2026.9,1.87883537]
[1772178174095,0.65683723,2027.2,2026.9,0.64542586]
[1772178174291,0.65683723,2027.2,2026.9,1.87882947]
[1772178174818,2.36683723,2027.4,2027.0,0.64542586]
[1772178176074,1.71,2027.4,2027.0,0.64542586]
[1772178176280,1.71,2027.4,2027.1,1.87871479]
[1772178176877,0.001,2027.4,2027.2,0.64542586]
[1772178177311,0.001,2027.4,2027.0,1.2333041]
[1772178177312,0.65683723,2027.3,2027.0,0.64542586]
[1772178177502,0.65683723,2027.3,2026.9,1.87879819]
[1772178178419,0.001,2027.4,2027.0,0.64542586]
[1772178179080,0.65783723,2027.4,2026.9,1.23337233]
[1772178179408,0.65783723,2027.4,2026.9,1.87879819]
[1772178180311,0.65783723,2027.4,2027.0,0.64542586]
[1772178180883,0.65683723,2027.3,2027.0,0.64542586]
[1772178181712,0.65683723,2027.3,2026.8,0.64542586]
[1772178182378,0.65683723,2027.3,2026.9,1.23341062]
[1772178182579,0.65683723,2027.3,2026.9,1.87883648]
[1772178183481,0.65683723,2027.3,2026.9,1.87993648]
[1772178183706,0.001,2027.2,2027.0,0.64542586]
[1772178185125,0.001,2027.2,2027.1,0.64542586]
[1772178185278,0.001,2027.4,2027.2,0.64542586]
[1772178185482,0.001,2027.4,2027.0,1.87875421]
[1772178186080,0.001,2027.4,2027.1,0.64542586]
[1772178187289,0.001,2027.4,2027.2,0.64542586]
[1772178187510,1.88958769,2028.0,2027.4,0.64542586]
[1772178187678,0.65683723,2027.9,2027.4,0.64542586]
[1772178189193,0.65683723,2027.9,2027.5,0.64542586]
[1772178189779,0.65829996,2027.8,2027.3,1.87281278]
[1772178189987,0.65829996,2027.8,2027.3,1.87284385]
[1772178190209,0.65829996,2027.8,2027.2,1.23319077]
[1772178190418,0.65829996,2027.8,2027.3,0.63969127]
[1772178191412,0.65829996,2027.5,2026.9,1.87417076]
[1772178193000,0.65829996,2027.5,2026.9,0.64079127]
[1772178193200,0.65829996,2027.5,2026.9,1.87419854]
[1772178193401,0.65829996,2027.4,2026.9,1.87419854]
[1772178193918,0.65829996,2027.4,2026.9,0.64079127]
[1772178194217,0.65829996,2027.4,2026.9,1.87419671]
[1772178194416,0.65829996,2027.4,2027.0,0.63969127]
[1772178194615,0.65829996,2027.6,2027.0,0.63969127]
[1772178195393,1.89132775,2027.6,2027.1,0.63969127]
[1772178195716,0.65829996,2027.5,2027.1,0.63969127]
[1772178195919,0.65829996,2027.5,2026.9,0.64079127]
[1772178196601,0.65829996,2027.5,2027.0,0.0011]
[1772178196920,1.9639467,2027.6,2027.0,0.0011]
[1772178196921,0.001,2027.2,2027.0,0.0011]
[1772178200516,0.001,2027.2,2027.0,0.64079127]
[1772178201718,0.001,2027.2,2027.0,0.0011]
[1772178203315,0.65929996,2027.2,2027.0,0.0011]
[1772178206406,0.65829996,2027.1,2027.0,0.0011]
[1772178209499,0.65829996,2027.0,2026.7,0.0011]
[1772178209714,0.65829996,2027.0,2026.6,0.2713207]
[1772178210023,0.65829996,2027.0,2026.5,0.0011]
[1772178210923,1.89168727,2027.0,2026.5,0.37811192]
[1772178211117,0.65829996,2026.9,2026.5,0.37811192]
[1772178213620,0.65829996,2026.9,2026.5,1.61172155]
[1772178213933,0.65829996,2026.9,2026.5,1.23470963]
[1772178214108,0.65829996,2026.9,2026.5,1.61404687]
[1772178214303,0.65829996,2026.9,2026.6,0.37933724]
[1772178216303,0.65829996,2027.1,2026.7,0.3808391]
[1772178216535,0.001,2027.2,2026.7,0.3808391]
[1772178216739,0.65929996,2027.2,2026.7,0.3808391]
[1772178216924,0.65829996,2027.1,2026.6,1.23359108]
[1772178217232,0.65829996,2027.1,2026.6,1.61517614]
[1772178217908,0.65829996,2027.1,2026.7,0.38231118]
[1772178218638,0.001,2027.2,2026.9,0.38303165]
[1772178219014,0.65929996,2027.2,2026.8,1.61650313]
[1772178220132,0.65721913,2027.1,2026.8,0.38303165]
[1772178220341,0.65721913,2027.1,2026.8,1.61649585]
[1772178221812,0.001,2027.2,2027.0,1.61987369]
[1772178222317,0.001,2027.2,2027.0,0.38652392]
[1772178224317,0.001,2027.2,2027.0,1.61985853]
[1772178225442,0.001,2027.2,2027.1,0.38852638]
[1772178227910,0.001,2027.2,2027.0,0.39045576]
[1772178229447,0.001,2027.2,2027.0,1.62379512]
[1772178230246,0.001,2027.2,2027.1,0.39171736]
[1772178230946,0.001,2027.2,2027.0,1.62567405]
[1772178231240,0.001,2027.2,2026.9,1.62570795]
[1772178231447,0.65821913,2027.2,2026.9,0.39233469]
[1772178231619,0.65721913,2027.1,2026.8,0.3929489]
[1772178231822,0.65721913,2027.1,2026.7,1.23462336]
[1772178232048,0.65721913,2027.1,2026.7,1.62757226]
[1772178232947,0.65721913,2027.1,2026.8,0.39355231]
[1772178233138,0.65721913,2027.1,2026.8,0.39465231]
[1772178233339,0.001,2027.0,2026.8,0.39465231]
[1772178234646,0.001,2027.0,2026.9,0.39473767]
[1772178234827,0.001,2027.2,2027.0,0.39373767]
[1772178235030,0.65821913,2027.2,2026.8,1.62829907]
[1772178236452,0.65821913,2027.2,2026.9,0.39489281]
[1772178237651,0.001,2027.2,2026.9,0.39489281]
[1772178238750,0.001,2027.2,2026.9,1.62828813]
[1772178239444,0.001,2027.2,2026.9,0.39489281]
[1772178239643,0.65821913,2027.2,2026.9,0.39489281]
[1772178240243,0.65821913,2027.2,2026.8,1.63110374]
[1772178241261,0.65721913,2027.1,2026.8,0.39767424]
[1772178241549,0.65721913,2027.1,2026.8,1.6311444]
[1772178242249,0.65721913,2027.1,2026.8,1.63113953]
[1772178243845,0.65721913,2027.1,2026.8,1.23456529]
[1772178244041,0.65721913,2027.0,2026.8,0.0011]
[1772178245330,0.65821913,2027.0,2026.8,0.0011]
[1772178252662,0.001,2027.0,2026.8,0.0011]
[1772178253355,0.001,2027.0,2026.8,1.23457148]
[1772178254536,0.001,2027.0,2026.8,0.0011]
[1772178255857,0.001,2027.0,2026.8,0.40625074]
[1772178256160,0.001,2027.0,2026.8,0.0011]
[1772178257064,0.001,2026.9,2026.8,0.0011]
[1772178257560,0.63202834,2026.9,2026.8,0.0011]
[1772178258862,0.63202834,2026.9,2026.6,0.10501673]
[1772178259065,0.63102834,2026.8,2026.5,0.0011]
[1772178259241,0.63202834,2026.9,2026.6,0.10545593]
[1772178261337,0.63202834,2026.9,2026.6,1.33903718]
[1772178261541,0.63202834,2026.9,2026.6,0.10545593]
[1772178262069,0.63202834,2026.9,2026.5,1.34214813]
[1772178265677,0.63102834,2026.8,2026.5,0.0011]
[1772178267358,0.63102834,2026.8,2026.5,0.11169387]
[1772178267750,0.63102834,2026.8,2026.5,0.0011]
[1772178269170,0.63102834,2026.8,2026.7,0.0011]
[1772178273659,0.63202834,2026.9,2026.7,0.0011]
[1772178274793,0.63102834,2026.8,2026.4,0.0011]
[1772178274973,0.63102834,2026.8,2026.1,1.58995752]
[1772178275957,0.68067638,2026.7,2026.1,1.58995752]
[1772178277701,0.68067638,2026.8,2026.3,0.48718601]
[1772178277863,0.68067638,2026.8,2026.3,0.476373]
[1772178278180,0.001,2026.9,2026.5,0.48718601]
[1772178279080,0.001,2026.9,2026.4,1.23371496]
[1772178279477,0.001,2026.9,2026.5,0.00095424]
[1772178280564,0.001,2026.9,2026.7,0.00149672]
[1772178282565,0.19267638,2027.1,2026.7,1.23502906]
[1772178282776,0.18386663,2027.1,2026.7,1.23502906]
[1772178282977,0.18386663,2027.1,2026.7,1.23353234]
[1772178283292,0.18386663,2027.1,2026.8,0.49865131]
[1772178284466,0.001,2027.2,2026.8,0.49865131]
[1772178284665,0.67618758,2027.2,2026.8,1.73209641]
[1772178285195,0.67618758,2027.2,2026.8,1.73212251]
[1772178285378,0.67618758,2027.2,2026.9,0.49975759]
[1772178286492,0.67618758,2027.2,2026.7,1.73377943]
[1772178286677,0.67618758,2027.2,2026.8,0.50082609]
[1772178289377,0.67618758,2027.2,2026.8,1.73425111]
[1772178292498,0.67618758,2027.2,2027.0,0.0011]
[1772178293897,0.001,2027.2,2027.0,0.0011]
[1772178295407,0.67518758,2027.1,2027.0,0.0011]
[1772178297086,0.67518758,2027.0,2026.8,0.0011]
[1772178297586,0.67518758,2027.0,2026.6,0.50693339]
[1772178297786,0.67518758,2027.0,2026.6,0.49612039]
[1772178298789,0.67518758,2027.0,2026.6,1.72969196]
[1772178300300,0.67518758,2026.8,2026.5,0.0011]
[1772178300606,0.67518758,2026.8,2026.5,1.23475228]
[1772178301115,0.67518758,2026.6,2026.0,0.0011]
[1772178302494,0.67518758,2026.6,2025.8,4.93741656]
[1772178302782,0.67518758,2026.4,2025.8,4.93741656]
[1772178302982,1.23358077,2026.7,2026.1,0.49892827]
[1772178303193,0.67518758,2026.6,2026.1,0.49892827]
[1772178304912,0.67518758,2026.6,2026.2,0.0011]
[1772178305102,0.67518758,2026.6,2026.2,0.50092477]
[1772178305303,1.9087837,2026.6,2026.2,0.50092477]
[1772178305504,0.67518758,2026.5,2026.2,0.50092477]
[1772178306006,0.67518758,2026.5,2026.2,0.0011]
[1772178306393,0.67518758,2026.5,2026.2,0.50136161]
[1772178306594,0.67518758,2026.7,2026.2,0.50136161]
[1772178306805,1.90878079,2026.6,2026.2,0.50136161]
[1772178307919,0.67518758,2026.5,2026.2,0.50136161]
[1772178308396,0.67518758,2026.5,2026.2,0.0011]
[1772178309202,1.90889327,2026.5,2026.2,0.0011]
[1772178309403,1.23370569,2026.5,2026.2,0.0011]
[1772178309614,0.67518758,2026.4,2026.2,0.0011]
[1772178311711,0.67075917,2026.6,2026.2,0.50429605]
[1772178312720,0.18075917,2026.6,2026.2,0.50429605]
[1772178312921,0.16994616,2026.6,2026.2,0.50429605]
[1772178313728,1.23365408,2026.5,2026.2,0.50429605]
[1772178313915,1.90441325,2026.5,2026.2,0.50429605]
[1772178314908,0.67075917,2026.4,2026.2,0.0011]
[1772178316935,0.67075917,2026.3,2026.1,0.0011]
[1772178317231,0.67075917,2026.3,2026.0,0.0011]
[1772178317607,0.18075917,2026.3,2026.0,0.0011]
[1772178317927,1.9045959,2026.2,2026.0,0.0011]
[1772178318436,0.67075917,2026.2,2026.0,0.0011]
[1772178318929,1.23382491,2026.3,2026.0,0.0011]
[1772178319106,1.23382491,2026.3,2026.0,0.66500532]
[1772178319296,1.90458408,2026.3,2026.0,0.66500532]
[1772178319496,1.23382491,2026.3,2026.0,0.66500532]
[1772178319997,4.93598607,2026.4,2026.0,0.66500532]
[1772178319998,0.67175917,2026.4,2026.0,0.0011]
[1772178321540,0.67175917,2026.4,2026.0,0.66500532]
[1772178321843,0.67175917,2026.4,2026.0,0.0011]
[1772178322023,0.67075917,2026.2,2026.0,0.0011]
[1772178324616,1.9046568,2026.1,2026.0,0.0011]
[1772178327521,0.67075917,2026.0,2025.9,0.0011]
[1772178327720,1.9046568,2026.1,2025.9,0.0011]
[1772178328842,4.93533119,2026.3,2025.9,0.0011]
[1772178328843,1.23388512,2026.2,2025.9,0.66500532]
[1772178329548,0.001,2026.1,2025.9,0.66500532]
[1772178329925,0.001,2026.1,2026.0,0.0011]
[1772178333821,0.67175917,2026.1,2025.8,0.0011]
[1772178336259,0.67075917,2025.9,2025.8,0.0011]
[1772178340564,0.64054694,2025.8,2025.7,0.0011]
[1772178341272,0.64054694,2026.0,2025.7,0.644648]
[1772178341431,0.001,2026.1,2025.8,0.643548]
[1772178341625,0.64154694,2026.4,2025.9,0.643548]
[1772178341832,0.001,2026.4,2026.0,0.643548]
[1772178342043,0.001,2026.4,2026.0,0.644648]
[1772178342459,0.001,2026.4,2026.0,1.87854784]
[1772178342651,0.73097271,2026.3,2026.0,0.0001]
[1772178342857,0.64054694,2026.2,2026.0,0.0001]
[1772178344179,0.64054694,2026.2,2025.8,0.0011]
[1772178344455,0.64054694,2026.0,2025.8,0.0011]
[1772178344670,1.87456638,2025.9,2025.8,0.0011]
[1772178345265,0.64054694,2025.9,2025.8,0.0011]
[1772178348270,1.87451136,2026.0,2025.8,0.0011]
[1772178349467,0.64054694,2026.0,2025.8,0.0011]
[1772178349632,1.87450846,2026.0,2025.8,0.0011]
[1772178350165,0.64054694,2025.9,2025.8,0.0011]
[1772178350962,1.87450846,2026.0,2025.8,0.0011]
[1772178351737,1.23396152,2026.0,2025.8,0.0011]
[1772178352065,0.64054694,2025.9,2025.8,0.0011]
[1772178352570,0.64054694,2025.9,2025.5,0.0011]
[1772178352759,1.72187962,2026.0,2025.0,0.0011]
[1772178352760,0.64054694,2025.3,2025.0,0.0011]
[1772178352957,0.64054694,2025.5,2025.1,0.644648]
[1772178353337,0.64054694,2025.6,2025.2,0.0011]
[1772178353646,0.64054694,2025.6,2025.2,0.644648]
[1772178354436,1.87463504,2025.8,2025.3,0.644648]
[1772178354636,1.87563504,2025.8,2025.3,0.643548]
[1772178355240,1.87563504,2025.8,2025.5,0.0011]
[1772178356269,0.64054694,2025.5,2025.1,0.643548]
[1772178356764,0.64054694,2025.5,2025.2,0.643548]
[1772178356950,0.64054694,2025.7,2025.2,0.643548]
[1772178357151,0.64054694,2025.7,2025.3,0.0011]
[1772178357570,1.23420221,2025.6,2025.3,0.0011]
[1772178359455,1.87474915,2025.6,2025.3,0.0011]
[1772178362166,1.87474915,2025.6,2025.4,0.0011]
[1772178362368,1.87474915,2025.6,2025.3,0.0011]
[1772178363449,1.87474915,2025.6,2025.3,0.644648]
[1772178364575,0.001,2025.8,2025.5,0.643548]
[1772178364976,0.001,2025.8,2025.7,0.643548]
[1772178365156,2.67523725,2025.8,2025.7,0.643548]
[1772178365477,0.4889181,2026.4,2025.7,0.643548]
[1772178365478,0.001,2026.4,2025.7,0.643548]
[1772178365679,1.23437448,2027.0,2026.4,0.472548]
[1772178365980,1.23437448,2027.0,2025.6,4.3912629]
[1772178365981,2.67623725,2027.0,2026.8,0.643548]
[1772178366158,0.001,2027.0,2026.8,1.87697318]
[1772178366689,1.23295242,2027.7,2027.1,1.1314661]
[1772178366875,1.23295242,2027.7,2027.2,0.643548]
[1772178367181,1.72087052,2027.7,2027.2,0.643548]
[1772178367572,2.41841607,2027.6,2027.2,0.643548]
[1772178367875,2.41841607,2027.6,2027.1,0.643548]
[1772178368062,2.41841607,2027.5,2027.1,0.643548]
[1772178368266,2.41841607,2027.6,2027.2,0.643548]
[1772178371377,0.6650535,2028.2,2027.6,0.66706573]
[1772178371549,2.41841607,2028.0,2027.6,0.66706573]
[1772178371751,0.002,2028.1,2027.7,1.15498383]
[1772178371948,0.002,2028.1,2027.4,0.66706573]
[1772178371949,3.08346957,2028.0,2027.4,0.66706573]
[1772178372181,0.6650535,2027.9,2027.2,1.90029031]
[1772178372366,0.6650535,2027.7,2027.2,1.90029031]
[1772178372566,3.08346957,2027.9,2027.3,0.66706573]
[1772178372769,0.6650535,2027.9,2027.3,0.66706573]
[1772178373358,1.2328632,2027.8,2027.3,1.9002321]
[1772178373567,2.41841607,2027.8,2027.4,0.66706573]
[1772178373880,2.41841607,2027.8,2027.4,0.25293584]
[1772178373881,1.70015709,2027.8,2027.4,0.25293584]
[1772178374082,0.001,2028.1,2027.6,0.25293584]
[1772178374251,0.001,2028.1,2027.7,2.43532164]
[1772178374462,0.001,2028.1,2027.8,0.25293584]
[1772178375089,0.001,2028.1,2027.5,2.43532164]
[1772178375090,0.6650535,2028.0,2027.2,1.48764785]
[1772178375264,0.6650535,2027.8,2027.2,0.25441976]
[1772178375578,0.001,2027.9,2027.3,0.25441976]
[1772178375780,0.001,2027.8,2027.3,0.25441976]
[1772178376357,0.6650535,2027.9,2027.3,0.25441976]
[1772178376576,0.001,2027.8,2027.3,0.25441976]
[1772178376976,0.001,2028.1,2027.5,2.43532164]
[1772178377177,0.001,2028.0,2027.6,0.2573358]
[1772178377673,0.001,2028.0,2027.6,1.49031954]
[1772178377857,0.001,2028.0,2027.6,0.2573358]
[1772178378059,0.6660535,2028.0,2027.2,1.49194576]
[1772178378568,0.6660535,2028.0,2027.3,0.25876369]
[1772178378770,0.6660535,2028.0,2027.1,1.49342268]
[1772178378963,0.6660535,2028.0,2027.1,1.23324458]
[1772178379383,0.6660535,2027.8,2027.3,1.23316726]
[1772178379588,0.001,2027.8,2027.4,0.26158034]
[1772178380393,0.001,2027.7,2027.5,0.26158034]
[1772178380874,0.001,2027.8,2027.5,0.26158034]
[1772178381483,0.001,2028.1,2027.7,0.26196577]
[1772178381873,0.6660535,2028.1,2027.6,1.2329848]
[1772178382166,0.001,2028.1,2027.6,1.49632054]
[1772178382384,0.001,2028.1,2027.7,0.26333574]
[1772178383802,0.6660535,2028.1,2027.4,1.49909533]
[1772178383976,0.6660535,2028.1,2027.4,1.23306537]
[1772178384473,0.6660535,2028.1,2027.3,1.49914929]
[1772178385880,1.89779511,2028.0,2027.3,1.49914929]
[1772178386196,1.89779511,2028.0,2027.3,1.49918581]
[1772178386382,1.23274161,2028.0,2027.3,1.49918581]
[1772178386575,1.23274161,2028.0,2027.1,0.26865583]
[1772178386576,0.6650535,2027.9,2027.1,0.26865583]
[1772178388064,1.8979167,2027.8,2027.1,0.26865583]
[1772178388270,0.6650535,2027.7,2027.0,1.23334977]
[1772178388469,0.6650535,2027.7,2027.0,1.50457011]
[1772178389770,0.6650535,2027.7,2027.1,0.27374164]
[1772178390197,1.2329848,2027.6,2027.1,1.50701054]
[1772178390408,1.89802246,2027.7,2027.1,1.50701054]
[1772178390906,1.89802246,2027.7,2027.2,0.0011]
[1772178392070,1.89802246,2027.7,2027.2,0.27729324]
[1772178392667,1.89802246,2027.7,2027.2,0.0011]
[1772178394487,0.6650535,2027.7,2027.2,0.0011]
[1772178394686,0.6650535,2027.7,2027.2,1.23432809]
[1772178395378,1.23390746,2027.8,2027.3,0.27976977]
[1772178395581,0.001,2027.8,2027.6,0.48704171]
[1772178395783,0.001,2027.8,2027.4,0.76797276]
[1772178396376,0.001,2027.8,2027.6,0.48704171]
[1772178396783,0.001,2028.1,2027.6,2.00208316]
[1772178397395,0.001,2028.1,2027.6,1.51504145]
[1772178398710,0.001,2028.1,2027.7,0.28333345]
[1772178399624,0.6650535,2029.1,2028.1,0.2844461]
[1772178399804,0.6650535,2029.0,2027.9,2.16319204]
[1772178400186,0.6650535,2029.0,2028.0,0.28663656]
[1772178400803,1.23219478,2028.9,2028.1,1.23268083]
[1772178401111,0.68430996,2028.8,2028.1,1.23268083]
[1772178401282,0.68430996,2028.8,2028.1,1.5203885]
[1772178401904,0.68430996,2029.0,2028.3,2.72289166]
[1772178402280,0.68430996,2029.0,2028.4,0.28876962]
[1772178402921,1.91634223,2029.2,2028.5,1.23243776]
[1772178403092,0.68430996,2029.2,2028.6,0.28982137]
[1772178403408,0.68430996,2029.2,2028.5,1.23243776]
[1772178403409,0.68430996,2029.1,2028.5,1.23243776]
[1772178404134,0.68430996,2029.1,2028.5,1.52329903]
[1772178404410,1.91626474,2029.3,2028.6,0.28986127]
[1772178404611,1.91626422,2029.3,2028.6,0.28986127]
[1772178405020,0.68430996,2029.2,2028.6,1.52219468]
[1772178405205,0.68430996,2029.2,2028.2,1.23257772]
[1772178405527,0.68430996,2029.2,2028.3,0.29089191]
[1772178406890,0.68430996,2029.0,2028.4,1.23249852]
[1772178407616,1.91636926,2029.2,2028.5,0.29389875]
[1772178408130,0.68430996,2029.2,2028.5,0.29389875]
[1772178409018,1.91636307,2029.2,2028.6,1.232377]
[1772178410321,1.91636307,2029.2,2028.6,0.29584582]
[1772178410500,0.68430996,2029.1,2028.3,1.52932965]
[1772178411213,0.68430996,2029.1,2028.4,0.29681015]
[1772178412630,1.91644401,2029.0,2028.4,1.529276]
[1772178413129,0.68430996,2028.9,2028.1,1.23263377]
[1772178413697,0.68430996,2028.9,2028.1,1.53224606]
[1772178414526,1.91656548,2028.8,2028.1,1.53224606]
[1772178415631,0.68430996,2028.8,2028.2,0.3014379]
[1772178415827,0.68430996,2028.8,2028.1,1.23263377]
[1772178416531,0.68430996,2028.8,2028.3,0.0011]
[1772178416728,1.91662622,2028.7,2028.3,0.0011]
[1772178417235,0.68430996,2028.7,2028.3,0.0011]
[1772178419109,1.91664543,2028.7,2028.3,0.0011]
[1772178419308,0.68430996,2028.6,2028.3,0.0011]
[1772178420216,0.68430996,2028.6,2028.0,0.0011]
[1772178420724,0.68430996,2028.6,2028.0,1.23383821]
[1772178421136,1.91674768,2028.6,2028.0,1.23383821]
[1772178421640,0.68430996,2028.9,2028.1,0.3077707]
[1772178423335,1.91651305,2028.9,2028.3,0.30860966]
[1772178425927,0.001,2029.0,2028.4,1.54355488]
[1772178426236,0.001,2029.0,2028.5,0.31105636]
[1772178426442,0.68430996,2029.1,2028.5,0.31105636]
[1772178428238,1.91644401,2029.0,2028.5,0.31105636]
[1772178428618,0.68430996,2028.9,2028.4,1.23249054]
[1772178429026,0.68430996,2028.9,2028.3,0.0011]
[1772178429218,0.68430996,2028.8,2028.0,0.0011]
[1772178430218,0.68159889,2028.6,2028.0,0.0011]
[1772178432752,1.23243776,2028.5,2028.0,0.0011]
[1772178433047,0.68159889,2028.4,2028.0,0.0011]
[1772178435061,1.23255928,2028.3,2028.0,0.0011]
[1772178437353,1.91414338,2028.4,2028.0,0.0011]
[1772178437652,1.42414338,2028.4,2028.0,0.0011]
[1772178437857,1.41333037,2028.4,2028.0,0.0011]
[1772178439149,1.23248308,2028.5,2028.0,0.72613454]
[1772178439352,1.23248308,2028.5,2028.0,1.95883544]
[1772178439545,0.68159889,2028.5,2028.1,0.72503454]
[1772178440053,0.68159889,2028.5,2028.0,1.2338009]
[1772178440359,0.68159889,2028.5,2028.2,0.0011]
[1772178441959,1.23249852,2028.4,2028.2,0.0011]
[1772178442162,1.91408522,2028.5,2028.2,0.0011]
[1772178442544,1.23248633,2028.5,2028.2,0.72613454]
[1772178447270,1.91401565,2028.6,2028.2,0.72613454]
[1772178447446,0.68159889,2028.5,2028.0,0.0011]
[1772178447645,0.19159889,2028.5,2028.0,0.72613454]
[1772178447859,0.18078589,2028.5,2028.0,0.72613454]
[1772178448740,0.18078589,2028.5,2028.0,0.0011]
[1772178449470,1.91409741,2028.4,2028.0,0.0011]
[1772178449972,0.68159889,2028.3,2027.7,0.0011]
[1772178450140,0.68159889,2028.3,2027.4,0.0011]
[1772178451240,0.68159889,2028.1,2027.4,0.0011]
[1772178453243,4.92957073,2028.6,2027.6,0.72503454]
[1772178453442,0.001,2028.3,2027.8,0.72503454]
[1772178453861,0.001,2028.3,2028.0,0.0011]
[1772178454368,0.001,2028.7,2028.1,0.72503454]
[1772178454943,1.23331897,2028.7,2028.1,0.72503454]
[1772178455272,0.001,2028.7,2028.2,1.23262005]
[1772178456769,0.68259889,2028.7,2028.0,1.23380581]
[1772178457070,0.68259889,2028.7,2028.0,1.95884035]
[1772178457862,1.23335629,2028.7,2028.1,0.72503454]
[1772178458048,1.23314402,2029.0,2028.4,0.72503454]
[1772178459259,0.001,2029.0,2028.4,0.72503454]
[1772178459462,1.23314239,2029.0,2028.4,0.72503454]
[1772178460056,0.001,2029.0,2028.5,1.23243776]
[1772178460358,0.70053054,2029.0,2028.2,1.95375629]
[1772178461874,0.70053054,2029.0,2028.3,0.72113624]
[1772178462452,0.001,2029.0,2028.5,0.72113624]
[1772178463379,0.73466148,2029.0,2028.4,1.23249852]
[1772178464646,0.73366148,2028.9,2028.3,1.95364773]
[1772178464852,0.73366148,2028.9,2028.3,1.23251149]
[1772178465976,0.001,2028.8,2028.3,1.23251149]
[1772178468358,0.001,2028.8,2028.4,0.72113624]
[1772178468562,0.001,2029.0,2028.4,0.72113624]
[1772178468763,0.001,2029.0,2028.5,1.23243776]
[1772178468973,0.001,2029.0,2028.6,0.72113624]
[1772178470781,0.001,2029.0,2028.7,1.23231626]
[1772178470981,0.001,2029.0,2028.7,1.9534525]
[1772178471366,0.001,2029.0,2028.8,0.72113624]
[1772178471892,0.73466148,2029.0,2028.4,1.9536004]
[1772178472687,0.73466148,2029.0,2028.4,1.95359849]
[1772178472986,0.001,2029.0,2028.5,0.71032323]